fUSD/lending_fUSD_20240815
["ID","MTS","AMOUNT","RATE_DAILY","PERIOD"]
[334967438,1723684246860,-594.21,0.00024383,7]
[334967440,1723684246869,-500.0,0.00024383,7]
[334967442,1723684246878,-500.0,0.00024383,7]
[334967444,1723684246887,-500.0,0.00024383,7]
[334967445,1723684246896,-500.0,0.00024383,7]
[334967447,1723684246905,-500.0,0.00024383,7]
[334967449,1723684246914,-556.8,0.00024383,7]
[334967451,1723684246923,-500.0,0.00024383,7]
[334967453,1723684246932,-500.0,0.00024383,7]
[334967455,1723684246943,-500.0,0.00024383,7]
[334967457,1723684246952,-500.0,0.00024383,7]
[334967459,1723684246963,-500.0,0.00024383,7]
[334967461,1723684246973,-500.0,0.00024383,7]
[334967463,1723684246982,-500.0,0.00024383,7]
[334967465,1723684246991,-500.0,0.00024383,7]
[334967467,1723684247003,-500.0,0.00024383,7]
[334967469,1723684247012,-500.0,0.00024383,7]
[334967471,1723684247021,-397.37,0.00024383,7]
[334967473,1723684247031,-500.0,0.00024383,7]
[334967475,1723684247040,-500.0,0.00024383,7]
[334967477,1723684247050,-500.0,0.00024383,7]
[334967478,1723684247059,-649.26,0.00024383,7]
[334967480,1723684247069,-846.24,0.00024393,2]
[334967482,1723684247078,-719.75,0.00024393,2]
[334967484,1723684247087,-751.47,0.00024393,2]
[334967486,1723684247097,-150.0,0.00024393,2]
[334967488,1723684247106,-150.0,0.00024393,2]
[334967490,1723684247115,-360.37,0.00024393,2]
[334967492,1723684247124,-530.97,0.00024393,2]
[334967494,1723684247134,-199.19,0.00024393,2]
[334967496,1723684247143,-150.0,0.00024393,2]
[334967498,1723684247152,-150.0,0.00024393,2]
[334967500,1723684247161,-150.0,0.00024393,2]
[334967501,1723684247170,-6223.5338951,0.000244,2]
[334967503,1723684247179,-717.09175557,0.000244,2]
[334967505,1723684247189,-178.78064877,0.000244,2]
[334967508,1723684247198,-213.82958139,0.000244,2]
[334967510,1723684247207,-2183.59847986,0.000244,2]
[334967512,1723684247216,-303.71508262,0.00024407,2]
[334967514,1723684247226,-507.58727967,0.00024411,2]
[334967516,1723684247235,-500.0,0.00024416,2]
[334967518,1723684247245,-6223.5338951,0.00024433,2]
[334967520,1723684247254,-1031.29518511,0.00024446,4]
[334967521,1723684247263,-151.0,0.00024447,7]
[334967524,1723684247272,-151.0,0.00024447,7]
[334967526,1723684247282,-240.239554,0.00024447,7]
[334967527,1723684247291,-240.239554,0.00024447,7]
[334967529,1723684247300,-717.09175557,0.0002445,2]
[334967531,1723684247310,-178.78064876,0.0002445,2]
[334967533,1723684247319,-2183.59847985,0.0002445,2]
[334967535,1723684247329,-303.71508262,0.00024454,2]
[334967537,1723684247338,-1031.29518511,0.00024466,4]
[334967539,1723684247347,-6223.5338951,0.00024467,2]
[334967541,1723684247356,-151.0,0.00024467,7]
[334967543,1723684247365,-151.0,0.00024467,7]
[334967545,1723684247374,-151.0,0.00024467,7]
[334967546,1723684247383,-238.81663,0.00024467,7]
[334967548,1723684247393,-151.0,0.00024467,7]
[334967550,1723684247402,-2062.59037022,0.00024474,4]
[334967552,1723684247412,-400.0,0.00024475,2]
[334967554,1723684247421,-500.0,0.00024476,7]
[334967556,1723684247430,-238.47,0.00024476,7]
[334967558,1723684247439,-335.33,0.00024476,7]
[334967560,1723684247448,-377.93,0.00024476,7]
[334967562,1723684247457,-151.0,0.00024476,7]
[334967564,1723684247467,-151.0,0.00024476,7]
[334967566,1723684247476,-423.61,0.00024476,7]
[334967568,1723684247485,-500.0,0.00024476,7]
[334967570,1723684247494,-500.0,0.00024476,7]
[334967572,1723684247503,-189.45,0.00024476,7]
[334967574,1723684247511,-500.0,0.00024476,7]
[334967576,1723684247520,-500.0,0.00024476,7]
[334967577,1723684247529,-151.0,0.00024476,7]
[334967579,1723684247538,-500.0,0.00024476,7]
[334967581,1723684247547,-179.35,0.00024476,7]
[334967583,1723684247556,-151.0,0.00024476,7]
[334967585,1723684247565,-500.0,0.00024476,7]
[334967587,1723684247574,-2102.655225,0.00024476,7]
[334967589,1723684247583,-500.0,0.00024476,7]
[334967591,1723684247593,-2102.655225,0.00024476,7]
[334967593,1723684247602,-863.919815,0.00024476,7]
[334967595,1723684247611,-863.919815,0.00024476,7]
[334967597,1723684247620,-500.0,0.00024476,7]
[334967599,1723684247629,-500.0,0.00024476,7]
[334967601,1723684247638,-151.0,0.00024476,7]
[334967603,1723684247647,-638.4,0.00024476,7]
[334967605,1723684247657,-500.0,0.00024476,7]
[334967607,1723684247666,-256.74,0.00024476,7]
[334967608,1723684247675,-500.0,0.00024476,7]
[334967609,1723684247683,-500.0,0.00024476,7]
[334967610,1723684247700,-151.0,0.00024477,7]
[334967611,1723684247709,-151.0,0.00024477,7]
[334967612,1723684247718,-151.0,0.00024478,7]
[334967613,1723684247727,-221.094912,0.00024478,7]
[334967614,1723684247736,-221.094912,0.00024478,7]
[334967615,1723684247745,-151.0,0.00024478,7]
[334967616,1723684247755,-2062.59037022,0.00024479,4]
[334967617,1723684247764,-2062.59037022,0.0002448,4]
[334967618,1723684247773,-229.69315,0.00024488,7]
[334967619,1723684247782,-151.0,0.00024488,7]
[334967620,1723684247791,-151.0,0.00024488,7]
[334967621,1723684247800,-151.0,0.00024488,7]
[334967622,1723684247810,-151.0,0.00024488,7]
[334967623,1723684247819,-151.0,0.00024488,7]
[334967624,1723684247828,-151.0,0.00024488,7]
[334967625,1723684247836,-254.657503,0.00024488,7]
[334967626,1723684247846,-151.0,0.00024488,7]
[334967627,1723684247855,-151.0,0.00024489,7]
[334967628,1723684247864,-151.0,0.00024489,7]
[334967629,1723684247873,-151.0,0.00024489,7]
[334967630,1723684247882,-151.0,0.00024489,7]
[334967631,1723684247891,-151.0,0.00024489,7]
[334967632,1723684247900,-151.0,0.00024489,7]
[334967633,1723684247910,-151.0,0.00024489,7]
[334967634,1723684247919,-151.0,0.00024489,7]
[334967635,1723684247928,-169.5707,0.00024489,7]
[334967636,1723684247937,-500.0,0.00024489,7]
[334967637,1723684247947,-500.0,0.00024489,7]
[334967638,1723684247956,-500.0,0.00024489,7]
[334967639,1723684247970,-186.46,0.00024489,7]
[334967640,1723684247979,-151.0,0.00024489,7]
[334967641,1723684247988,-2102.655225,0.00024489,7]
[334967642,1723684247997,-500.0,0.00024489,7]
[334967643,1723684248008,-2102.655225,0.00024489,7]
[334967644,1723684248017,-271.64,0.00024489,7]
[334967645,1723684248027,-863.919815,0.00024489,7]
[334967646,1723684248037,-293.9,0.00024489,7]
[334967647,1723684248046,-863.919815,0.00024489,7]
[334967648,1723684248055,-563.25,0.00024489,7]
[334967649,1723684248064,-500.0,0.00024489,7]
[334967650,1723684248073,-199.046468,0.0002449,7]
[334967651,1723684248083,-151.0,0.0002449,7]
[334967652,1723684248092,-221.094912,0.0002449,7]
[334967653,1723684248101,-221.094912,0.0002449,7]
[334967654,1723684248111,-151.0,0.0002449,7]
[334967655,1723684248120,-1071.44,0.00024493,7]
[334967656,1723684248131,-360.96,0.00024493,7]
[334967657,1723684248140,-151.0,0.00024493,7]
[334967658,1723684248150,-151.0,0.00024493,7]
[334967659,1723684248161,-500.0,0.00024493,7]
[334967660,1723684248170,-151.0,0.00024494,7]
[334967661,1723684248179,-151.0,0.00024494,7]
[334967662,1723684248189,-258.480628,0.00024494,7]
[334967663,1723684248199,-1801.2072223,0.00024494,2]
[334967664,1723684248208,-151.0,0.00024494,7]
[334967665,1723684248217,-151.0,0.00024494,7]
[334967666,1723684248226,-18956.1830664,0.00024494,2]
[334967667,1723684248235,-151.0,0.00024494,7]
[334967668,1723684248245,-151.0,0.00024494,7]
[334967669,1723684248254,-151.0,0.00024494,7]
[334967670,1723684248263,-280.028325,0.00024494,7]
[334967671,1723684248273,-11444.4495155,0.00024494,2]
[334967672,1723684248282,-151.0,0.00024494,7]
[334967673,1723684248291,-2102.655225,0.00024494,7]
[334967674,1723684248300,-2102.655225,0.00024494,7]
[334967675,1723684248309,-863.919815,0.00024494,7]
[334967676,1723684248318,-863.919815,0.00024494,7]
[334967677,1723684248327,-2957.8731693,0.00024494,2]
[334967678,1723684248336,-5275.8815237,0.00024494,2]
[334967679,1723684248345,-2500.0,0.00024496,5]
[334967680,1723684248355,-1310.5665024,0.00024497,2]
[334967681,1723684248364,-150.01,0.00024499,2]
[334967682,1723684248376,-1026.43863779,0.00024499,2]
[334967683,1723684248385,-1071.44,0.00024499,7]
[334967684,1723684248394,-1071.44,0.00024499,7]
[334967685,1723684248403,-1071.44,0.00024499,7]
[334967686,1723684248412,-1071.44,0.00024499,7]
[334967687,1723684248421,-1071.44,0.00024499,7]
[334967688,1723684248431,-1071.44,0.00024499,7]
[334967689,1723684248441,-1071.44,0.00024499,7]
[334967690,1723684248450,-1071.44,0.00024499,7]
[334967691,1723684248459,-1071.44,0.00024499,7]
[334967692,1723684248468,-1071.44,0.00024499,7]
[334967693,1723684248477,-1071.44,0.00024499,7]
[334967694,1723684248486,-1071.44,0.00024499,7]
[334967695,1723684248495,-1071.44,0.00024499,7]
[334967696,1723684248504,-1071.44,0.00024499,7]
[334967697,1723684248513,-1071.44,0.00024499,7]
[334967698,1723684248523,-1071.44,0.00024499,7]
[334967699,1723684248532,-1071.44,0.00024499,7]
[334967700,1723684248542,-1071.44,0.00024499,7]
[334967701,1723684248551,-1071.44,0.00024499,7]
[334967702,1723684248676,-1071.55289456,0.00024499,7]
[334967703,1723684248686,-151.495672,0.00024499,7]
[334967704,1723684248696,-151.0,0.00024499,7]
[334967705,1723684248705,-151.0,0.00024499,7]
[334967706,1723684248715,-151.0,0.00024499,7]
[334967707,1723684248724,-151.0,0.00024499,7]
[334967708,1723684248734,-151.0,0.00024499,7]
[334967709,1723684248743,-151.0,0.00024499,7]
[334967710,1723684248752,-500.0,0.00024499,7]
[334967711,1723684248762,-500.0,0.00024499,7]
[334967712,1723684248772,-500.0,0.00024499,7]
[334967713,1723684248781,-500.0,0.00024499,7]
[334967714,1723684248790,-500.0,0.00024499,7]
[334967715,1723684248800,-500.0,0.00024499,7]
[334967716,1723684248809,-500.0,0.00024499,7]
[334967717,1723684248818,-500.0,0.00024499,7]
[334967718,1723684248828,-255.76,0.00024499,7]
[334967719,1723684248837,-151.0,0.00024499,7]
[334967720,1723684248846,-500.0,0.00024499,7]
[334967721,1723684248856,-500.0,0.00024499,7]
[334967722,1723684248865,-647.98,0.00024499,7]
[334967723,1723684248875,-151.0,0.00024499,7]
[334967724,1723684248884,-151.0,0.00024499,7]
[334967725,1723684248894,-151.0,0.00024499,7]
[334967726,1723684248903,-151.0,0.00024499,7]
[334967727,1723684248913,-221.094912,0.00024499,7]
[334967728,1723684248923,-221.094912,0.00024499,7]
[334967729,1723684248933,-500.0,0.00024499,7]
[334967730,1723684248945,-217.29,0.00024499,7]
[334967731,1723684248963,-598.0,0.00024499,7]
[334967732,1723684248974,-151.0,0.00024499,7]
[334967733,1723684248984,-362.93,0.00024499,7]
[334967734,1723684248993,-500.0,0.00024499,7]
[334967735,1723684249003,-500.0,0.00024499,7]
[334967736,1723684249013,-500.0,0.00024499,7]
[334967737,1723684249023,-500.0,0.00024499,7]
[334967738,1723684249032,-500.0,0.00024499,7]
[334967739,1723684249042,-500.0,0.00024499,7]
[334967740,1723684249052,-500.0,0.00024499,7]
[334967741,1723684249061,-344.73,0.00024499,7]
[334967742,1723684249071,-257.08,0.00024499,7]
[334967743,1723684249080,-500.0,0.00024499,7]
[334967744,1723684249090,-408.73,0.00024499,7]
[334967745,1723684249099,-500.0,0.00024499,7]
[334967746,1723684249109,-500.0,0.00024499,7]
[334967747,1723684249119,-623.04,0.00024499,7]
[334967748,1723684249128,-500.0,0.00024499,7]
[334967749,1723684249138,-500.0,0.00024499,7]
[334967750,1723684249149,-332.98,0.00024499,7]
[334967751,1723684249158,-500.0,0.00024499,7]
[334967752,1723684249169,-500.0,0.00024499,7]
[334967753,1723684249179,-569.54,0.00024499,7]
[334967754,1723684249188,-500.0,0.00024499,7]
[334967755,1723684249198,-500.0,0.00024499,7]
[334967756,1723684249207,-500.0,0.00024499,7]
[334967757,1723684249216,-500.0,0.00024499,7]
[334967758,1723684249226,-500.0,0.00024499,7]
[334967759,1723684249236,-500.0,0.00024499,7]
[334967760,1723684249246,-500.0,0.00024499,7]
[334967761,1723684249256,-500.0,0.00024499,7]
[334967762,1723684249266,-500.0,0.00024499,7]
[334967763,1723684249276,-500.0,0.00024499,7]
[334967764,1723684249286,-379.0701193,0.00024499,7]
[334967765,1723684249295,-500.0,0.00024499,7]
[334967766,1723684249306,-193.33,0.00024499,7]
[334967767,1723684249315,-500.0,0.00024499,7]
[334967768,1723684249324,-500.0,0.00024499,7]
[334967769,1723684249334,-500.0,0.00024499,7]
[334967770,1723684249343,-586.9,0.00024499,7]
[334967771,1723684249352,-500.0,0.00024499,7]
[334967772,1723684249361,-297.14,0.00024499,7]
[334967773,1723684249371,-500.0,0.00024499,7]
[334967774,1723684249380,-500.0,0.00024499,7]
[334967775,1723684249390,-500.0,0.00024499,7]
[334967776,1723684249399,-500.0,0.00024499,7]
[334967777,1723684249409,-390.31,0.00024499,7]
[334967778,1723684249418,-500.0,0.00024499,7]
[334967779,1723684249427,-174.39,0.00024499,7]
[334967780,1723684249439,-151.0,0.00024499,7]
[334967781,1723684249448,-500.0,0.00024499,7]
[334967782,1723684249458,-500.0,0.00024499,7]
[334967783,1723684249467,-500.0,0.00024499,7]
[334967784,1723684249478,-543.13,0.00024499,7]
[334967785,1723684249488,-563.25,0.00024499,7]
[334967786,1723684249497,-563.25,0.00024499,7]
[334967787,1723684249507,-563.25,0.00024499,7]
[334967788,1723684249517,-563.25,0.00024499,7]
[334967789,1723684249527,-563.25,0.00024499,7]
[334967790,1723684249537,-563.25,0.00024499,7]
[334967791,1723684249546,-563.25,0.00024499,7]
[334967792,1723684249556,-563.25,0.00024499,7]
[334967793,1723684249566,-563.25,0.00024499,7]
[334967794,1723684249575,-563.25,0.00024499,7]
[334967795,1723684249584,-563.25,0.00024499,7]
[334967796,1723684249594,-563.25,0.00024499,7]
[334967797,1723684249604,-500.0,0.00024499,7]
[334967798,1723684249613,-563.25,0.00024499,7]
[334967799,1723684249623,-500.0,0.00024499,7]
[334967800,1723684249632,-563.25,0.00024499,7]
[334967801,1723684249641,-500.0,0.00024499,7]
[334967802,1723684249650,-500.0,0.00024499,7]
[334967803,1723684249660,-563.25,0.00024499,7]
[334967804,1723684249670,-500.0,0.00024499,7]
[334967805,1723684249680,-563.25,0.00024499,7]
[334967806,1723684249690,-500.0,0.00024499,7]
[334967807,1723684249700,-563.25,0.00024499,7]
[334967808,1723684249709,-500.0,0.00024499,7]
[334967809,1723684249719,-563.25,0.00024499,7]
[334967810,1723684249729,-500.0,0.00024499,7]
[334967811,1723684249740,-500.0,0.00024499,7]
[334967812,1723684249749,-563.27,0.00024499,7]
[334967813,1723684249758,-500.0,0.00024499,7]
[334967814,1723684249768,-500.0,0.00024499,7]
[334967815,1723684249778,-196.24,0.00024499,7]
[334967816,1723684249787,-500.0,0.00024499,7]
[334967817,1723684249796,-500.0,0.00024499,7]
[334967818,1723684249805,-500.0,0.00024499,7]
[334967819,1723684249815,-500.0,0.00024499,7]
[334967820,1723684249824,-500.0,0.00024499,7]
[334967821,1723684249833,-500.0,0.00024499,7]
[334967822,1723684249843,-151.0,0.00024499,7]
[334967823,1723684249852,-500.0,0.00024499,7]
[334967824,1723684249862,-500.0,0.00024499,7]
[334967825,1723684249871,-500.0,0.00024499,7]
[334967826,1723684249881,-292.11,0.00024499,7]
[334967827,1723684249890,-500.0,0.00024499,7]
[334967828,1723684249899,-500.0,0.00024499,7]
[334967829,1723684249909,-500.0,0.00024499,7]
[334967830,1723684249918,-500.0,0.00024499,7]
[334967831,1723684249928,-500.0,0.00024499,7]
[334967832,1723684249939,-500.0,0.00024499,7]
[334967833,1723684249950,-542.49,0.00024499,7]
[334967834,1723684249961,-598.19,0.00024499,7]
[334967835,1723684249973,-240.239554,0.00024499,7]
[334967836,1723684249982,-240.239554,0.00024499,7]
[334967837,1723684249992,-638.8,0.00024499,7]
[334967838,1723684250002,-362.74,0.00024499,7]
[334967839,1723684250013,-2736.13486568,0.000245,2]
[334967840,1723684250023,-558919.60599856,0.000245,11]
[334967841,1723684250032,-1351461.26748826,0.000245,5]
[334967842,1723684250311,-576.99,0.00013001,2]
[334967843,1723684250324,-293.79422022,0.00013001,2]
[334967844,1723684250339,-21.93928437,0.00013001,2]
[334967845,1723684250351,-365.80180037,0.00013052,2]
[334967846,1723684250362,-151.0,0.00024383,7]
[334967847,1723684250371,-151.0,0.00024383,7]
[334967848,1723684250381,-10.22458235,0.00024383,7]
[334967849,1723684250845,-528.85885242,0.00024191,2]
[334967850,1723684250857,-747.85523931,0.00024191,2]
[334967851,1723684250868,-655.89202151,0.00024191,2]
[334967852,1723684250878,-489.77541765,0.00024383,7]
[334967853,1723684250889,-151.0,0.00024393,7]
[334967854,1723684250898,-3442.09389183,0.000245,5]
[334967855,1723684250924,-531.07,0.00023781,2]
[334967856,1723684250934,-426.45,0.00023781,2]
[334967857,1723684250952,-57.3498506,0.000245,5]
[334967858,1723684250965,-1794.36314389,0.000245,5]
[334967859,1723684250977,-302.0,0.000245,5]
[334967866,1723684383890,500.0,0.00024657,120]
[334967867,1723684384037,500.0,0.00025342,120]
[334967868,1723684384295,500.0,0.00026027,120]
[334967869,1723684384582,500.0,0.00026712,120]
[334967871,1723684509714,280.0,0.00025148,120]
[334967873,1723684979716,706.12,0.00024657,120]
[334967874,1723684980008,706.12,0.00025342,120]
[334967875,1723684980265,706.12,0.00026027,120]
[334967876,1723684980520,706.12,0.00026712,120]
[334967879,1723685158981,164.2098542,0.00025,60]
[334967885,1723685323285,155.0,0.00024499,60]
[334967886,1723685354610,183.0,0.0002449,120]
[334967887,1723685355080,183.0,0.0002448,120]
[334967888,1723685355539,183.0,0.0002447,120]
[334967889,1723685356046,183.0,0.00024517,120]
[334967890,1723685356556,183.0,0.00024507,120]
[334967891,1723685357036,183.0,0.00024497,120]
[334967892,1723685357516,183.0,0.0002457,120]
[334967893,1723685357999,183.0,0.0002456,120]
[334967894,1723685358473,183.0,0.0002459,120]
[334967895,1723685359008,189.09,0.0002458,120]
[334967908,1723685431859,-456.33428005,0.00010888,2]
[334967909,1723685431870,-450.0,0.00010888,2]
[334967910,1723685431991,-500.0,0.00010888,2]
[334967925,1723685438257,-4160.5181,0.00010888,2]
[334967949,1723685439944,-318.08297654,0.00010888,2]
[334967950,1723685439956,-5335.48615908,0.00010888,2]
[334967951,1723685439967,-923.08443828,0.00010888,2]
[334967952,1723685439979,-1352.74328221,0.00010888,2]
[334967953,1723685439990,-1990.94271447,0.00010888,2]
[334967954,1723685439999,-660.7942,0.000109,2]
[334967955,1723685440008,-250.0,0.00011,2]
[334967956,1723685440018,-4342.29893181,0.00011,2]
[334967957,1723685440029,-269.88453185,0.00011,2]
[334968112,1723685443548,-401.47892665,0.00011,2]
[334968115,1723685445947,-285.56665977,0.00011,2]
[334968122,1723685446094,-608.35712949,0.00011,2]
[334968123,1723685446475,-1143.40519,0.00011,2]
[334968124,1723685446487,-1143.40519,0.00011,2]
[334968137,1723685603317,589.33,0.00024657,120]
[334968138,1723685603554,589.33,0.00025342,120]
[334968139,1723685603993,589.33,0.00026027,120]
[334968140,1723685604283,589.33,0.00026712,120]
[334968147,1723686182887,500.0,0.00024657,120]
[334968148,1723686183169,500.0,0.00025342,120]
[334968149,1723686183524,500.0,0.00026027,120]
[334968150,1723686183848,500.0,0.00026712,120]
[334968198,1723686632817,-460.59415606,0.0001,2]
[334968199,1723686632829,-89.40584394,0.0001,2]
[334968200,1723686632839,-401.60536357,0.00010442,2]
[334968201,1723686632849,-152.25,0.00010463,2]
[334968202,1723686632858,-104.23842372,0.00010471,2]
[334968203,1723686632870,-348.61922941,0.00010471,2]
[334968210,1723686633035,-151.11,0.00010542,2]
[334968212,1723686633046,-250.0,0.00010626,2]
[334968214,1723686633055,-270.65459462,0.00010699,2]
[334968215,1723686633064,-433.20023883,0.00010713,2]
[334968216,1723686633075,-485.32685972,0.00010713,2]
[334968217,1723686633085,-224.0,0.0001074,2]
[334968218,1723686633094,-16.03492136,0.0001079,2]
[334968219,1723686633113,-392.36702055,0.0001079,2]
[334968220,1723686633125,-1272.42805809,0.0001079,2]
[334968221,1723686633134,-264.2649148,0.00010809,2]
[334968223,1723686638185,-615.9250852,0.00010809,2]
[334968226,1723686638194,-218.97161701,0.00010852,2]
[334968229,1723686638203,-218.97161701,0.00010852,2]
[334968231,1723686638212,-203.76892036,0.00010861,2]
[334968232,1723686638221,-155.0,0.00010862,2]
[334968234,1723686638230,-401.51974171,0.00010888,2]
[334968236,1723686638240,-405.83873161,0.00010899,2]
[334968237,1723686638249,-746.73660156,0.00010949,2]
[334968238,1723686638378,-14740.45534907,0.00010949,2]
[334968239,1723686638390,-2000.0,0.00010959,2]
[334968240,1723686638401,-4680.25,0.00010959,2]
[334968241,1723686638412,-3278.37,0.00010959,2]
[334968242,1723686638421,-250.0,0.00010959,2]
[334968243,1723686638433,-150.0,0.00010959,2]
[334968244,1723686638442,-651.1245543,0.00010979,2]
[334968245,1723686638451,-234.86106333,0.00010999,2]
[334968246,1723686638460,-4688.8768345,0.00011,2]
[334968259,1723686639842,210.15691743,0.00010945,30]
[334968269,1723686640117,-1216.15843688,0.00011,2]
[334968270,1723686640128,-697.55393885,0.00011,2]
[334968271,1723686640139,-265.73,0.00011,2]
[334968272,1723686640311,-10316.76344003,0.00011,2]
[334968273,1723686640322,-721.56421356,0.00011,2]
[334968274,1723686640333,-648.22125179,0.00011,2]
[334968275,1723686640344,-1424.0,0.00011,2]
[334968276,1723686640355,-276.91061512,0.00011,2]
[334968277,1723686640366,-1819.20996264,0.00011,2]
[334968278,1723686640378,-500.0,0.00011,2]
[334968279,1723686640390,-735.91480174,0.00011,2]
[334968280,1723686640403,-340.15000015,0.00011,2]
[334968281,1723686640510,-4564.99427688,0.00011,2]
[334968282,1723686640522,-419.77238971,0.00011,2]
[334968283,1723686640534,-1656.58520388,0.00011,2]
[334968284,1723686640545,-9181.60895399,0.00011,2]
[334968285,1723686640557,-7971.90000001,0.00011,2]
[334968286,1723686640568,-3575.6891207,0.00011,2]
[334968287,1723686640579,-154.77620151,0.00011,2]
[334968299,1723686646278,-155.0,0.00010862,2]
[334968300,1723686646287,-121.345,0.00011,2]
[334968301,1723686646298,-784.18007613,0.00011,2]
[334968302,1723686646310,-573.27155235,0.00011,2]
[334968303,1723686646323,-653.93248001,0.00011,2]
[334968304,1723686646332,-200.0,0.00011077,2]
[334968305,1723686646341,-211.33487227,0.00011315,2]
[334968306,1723686646351,-1901.38,0.00011429,2]
[334968307,1723686646361,-195.13270999,0.00011483,2]
[334968308,1723686646370,-56626.44869088,0.000118,2]
[334968309,1723686646382,-313.169,0.000118,2]
[334968326,1723686779563,500.0,0.00024657,120]
[334968327,1723686779869,500.0,0.00025342,120]
[334968328,1723686780146,500.0,0.00026027,120]
[334968329,1723686780400,500.0,0.00026712,120]
[334968330,1723687334426,1305.0,0.00027,120]
[334968331,1723687352427,2000.0,0.00027,120]
[334968332,1723687360423,1000.0,0.00027,120]
[334968333,1723687393271,500.0,0.00024657,120]
[334968334,1723687393913,500.0,0.00025342,120]
[334968335,1723687394203,500.0,0.00026027,120]
[334968336,1723687394450,500.0,0.00026712,120]
[334968338,1723687554103,5218.0,0.00027,120]
[334968341,1723687780208,-2004.89077694,9.988e-05,2]
[334968342,1723687802276,1329.4458,9.888e-05,2]
[334968348,1723687833017,-300.0,9.987e-05,2]
[334968349,1723687833027,-10553.95246952,9.988e-05,2]
[334968351,1723687833037,-550.0,0.0001,2]
[334968353,1723687833047,-2503.23855985,0.00010097,2]
[334968356,1723687833056,-2503.23855985,0.00010471,2]
[334968359,1723687833066,-358.10515509,0.00010505,2]
[334968360,1723687833076,-485.95604284,0.00010505,2]
[334968361,1723687833086,-36196.14169929,0.00010565,2]
[334968363,1723687833095,-366.58170558,0.00010566,2]
[334968365,1723687833105,-5413.97836727,0.00010566,2]
[334968367,1723687833115,-155.0,0.00010566,2]
[334968369,1723687833124,-155.11525549,0.00010566,2]
[334968371,1723687833134,-150.0,0.00010617,2]
[334968373,1723687833143,-189.18,0.00010618,2]
[334968375,1723687833153,-328.92830194,0.00010799,2]
[334968377,1723687833162,-401.51974171,0.00010852,2]
[334968379,1723687833172,-1010.57688543,0.00010874,2]
[334968381,1723687833181,-3876.44792318,0.0001089,2]
[334968383,1723687833191,-1742.95172678,0.00010899,2]
[334968385,1723687833200,-420.0,0.00010985,2]
[334968387,1723687833210,-250.74625253,0.00011,2]
[334968389,1723687833220,-150.99,0.00011127,2]
[334968390,1723687833230,-499.99,0.00011127,2]
[334968391,1723687833239,-291.60874966,0.00011697,2]
[334968392,1723687833250,-315.84806,0.00011716,2]
[334968393,1723687833260,-104164.44063345,0.000118,2]
[334968394,1723687833270,-2406.25443,0.000118,2]
[334968395,1723687833279,-3629.01275959,0.000119,2]
[334968396,1723687833289,-5000.0,0.00012,2]
[334968397,1723687833298,-600.0,0.00012,2]
[334968398,1723687833308,-224.0,0.00012083,2]
[334968399,1723687833317,-495.0,0.00012084,2]
[334968400,1723687833327,-187.5100797,0.00012106,2]
[334968401,1723687833336,-155.2396607,0.00012126,2]
[334968402,1723687833346,-180.8,0.00012595,2]